bitfinex-derivatives/quotes_ETHF0:USTF0_20250427
["timestamp","ask_amount","ask_price","bid_price","bid_amount"]
[1745762078340,1.72152073,1796.2,1796.0,5.3151]
[1745762078541,1.6238,1796.2,1796.0,5.3151]
[1745762080946,1.6238,1796.2,1796.0,6.42832]
[1745762081947,1.6238,1796.2,1796.0,5.3151]
[1745762082143,2.73691,1796.2,1796.0,5.3151]
[1745762082344,1.6238,1796.2,1796.0,5.3151]
[1745762082852,2.73691,1796.2,1796.0,5.3151]
[1745762083349,1.6238,1796.2,1796.0,5.3151]
[1745762083552,2.73693,1796.2,1796.0,5.3151]
[1745762084448,1.11316,1796.1,1796.0,5.3151]
[1745762085453,2.73694,1796.2,1796.0,5.3151]
[1745762085649,2.73694,1796.2,1796.1,1.6626]
[1745762085849,2.83466072,1796.2,1796.1,1.6626]
[1745762086149,1.11316,1796.1,1796.0,3.722]
[1745762086353,3.57126,1796.1,1796.0,3.722]
[1745762086648,3.66898768,1796.1,1796.0,3.722]
[1745762089148,3.57126,1796.1,1796.0,5.2935]
[1745762090055,1.11316,1796.1,1796.0,5.2935]
[1745762090255,1.7129,1796.2,1796.0,5.2935]
[1745762090456,1.11316,1796.1,1796.0,3.722]
[1745762091855,1.95178,1796.3,1796.0,3.722]
[1745762092157,0.8801,1796.4,1796.1,5.23624]
[1745762092358,1.1131,1796.2,1796.1,0.9153]
[1745762092658,1.11316,1796.1,1796.0,7.573]
[1745762094259,1.11316,1796.1,1796.0,3.851]
[1745762095055,1.11322,1796.0,1795.9,3.2078]
[1745762095859,2.82605,1796.2,1795.9,3.2078]
[1745762096059,1.7129,1796.2,1795.9,3.2078]
[1745762096253,1.11322,1796.0,1795.9,6.9298]
[1745762096451,2.82941,1796.1,1795.9,6.9298]
[1745762096959,1.7162,1796.0,1795.9,6.9298]
[1745762097959,1.7162,1796.0,1795.9,8.04309]
[1745762098453,1.7162,1796.0,1795.9,4.83529]
[1745762098661,1.7162,1796.0,1795.9,8.04309]
[1745762098869,1.11321,1796.1,1795.9,8.04309]
[1745762100060,1.11321,1796.1,1796.0,1.11322]
[1745762100362,2.82935,1796.2,1796.0,1.11322]
[1745762100558,0.876,1796.3,1795.9,6.9298]
[1745762100759,0.8801,1796.4,1796.3,1.11304]
[1745762100960,2.4856,1796.5,1796.4,1.11298]
[1745762101261,4.0474,1796.6,1796.5,1.11291]
[1745762101462,5.25795078,1796.6,1796.4,1.11293]
[1745762101759,6.77835,1796.6,1796.4,1.11293]
[1745762102360,5.6655,1796.6,1796.5,1.11291]
[1745762102562,5.76320174,1796.6,1796.5,1.11291]
[1745762102956,6.77836,1796.6,1796.4,1.11293]
[1745762103163,1.6513,1796.5,1796.4,1.11293]
[1745762104065,2.5354,1796.5,1796.4,1.11293]
[1745762104360,3.64831,1796.5,1796.3,1.113]
[1745762104660,1.6513,1796.4,1796.3,1.113]
[1745762105162,1.6513,1796.4,1796.3,4.835]
[1745762105358,1.6513,1796.4,1796.3,6.5374]
[1745762107156,0.8841,1796.5,1796.4,1.11298]
[1745762107356,0.8841,1796.5,1796.4,2.81538]
[1745762108063,3.2078,1796.6,1796.5,1.11291]
[1745762108365,3.2078,1796.6,1796.5,2.81531]
[1745762109159,3.2078,1796.6,1796.5,6.53731]
[1745762109561,4.9464,1796.6,1796.5,6.53731]
[1745762109959,6.05925,1796.6,1796.5,5.4244]
[1745762110459,4.9464,1796.6,1796.5,6.53731]
[1745762112164,4.0954,1796.8,1796.7,1.11279]
[1745762112376,5.6785,1797.0,1796.6,11.50219]
[1745762112560,2.4707,1797.0,1796.9,1.11267]
[1745762112756,0.8625,1797.2,1797.0,1.11258]
[1745762112961,1.97498,1797.2,1797.0,2.77888]
[1745762113162,0.8625,1797.2,1797.0,1.6663]
[1745762113361,2.463,1797.2,1797.0,4.8741]
[1745762113555,2.463,1797.2,1797.1,1.11254]
[1745762113768,2.5606628,1797.2,1797.1,2.77884]
[1745762113968,2.5606628,1797.2,1797.1,1.6663]
[1745762114160,6.2826628,1797.2,1797.1,1.6663]
[1745762115068,6.28266069,1797.2,1797.1,1.6663]
[1745762115459,6.185,1797.2,1797.1,1.6663]
[1745762117063,7.29748,1797.2,1797.1,1.6663]
[1745762117266,6.185,1797.2,1797.1,2.77884]
[1745762117468,7.29748,1797.2,1797.1,1.6663]
[1745762118470,4.5845,1797.2,1797.1,2.77884]
[1745762118770,3.722,1797.2,1797.1,2.77884]
[1745762119359,1.11221,1797.7,1797.2,2.78121]
[1745762119565,4.58794,1797.8,1797.6,1.11221]
[1745762119770,4.58794,1797.8,1797.7,1.6158]
[1745762120267,7.1978,1797.8,1797.5,3.2078]
[1745762120467,1.11223,1797.6,1797.5,4.8236]
[1745762120668,1.11223,1797.6,1797.5,1.6158]
[1745762120862,1.1123,1797.5,1797.3,8.16518]
[1745762121063,1.11228,1797.6,1797.4,1.11236]
[1745762121271,1.7407,1797.5,1797.4,2.79456]
[1745762122264,5.4627,1797.5,1797.4,2.79456]
[1745762122463,3.722,1797.5,1797.4,2.79456]
[1745762122668,3.722,1797.5,1797.4,3.69456]
[1745762123876,3.722,1797.5,1797.4,2.79456]
[1745762124063,5.3068,1797.5,1797.4,2.79456]
[1745762124764,5.3068,1797.5,1797.3,3.2078]
[1745762125070,4.40296,1797.4,1797.3,3.2078]
[1745762125673,3.2906,1797.4,1797.3,3.2078]
[1745762125864,3.2906,1797.4,1797.3,4.32022]
[1745762126260,7.0126,1797.4,1797.3,4.32022]
[1745762126465,5.4278,1797.4,1797.3,4.32022]
[1745762126672,3.722,1797.4,1797.3,4.32022]
[1745762126970,3.722,1797.4,1797.3,5.20852]
[1745762127372,3.722,1797.4,1797.3,6.85952]
[1745762128564,6.7177,1797.8,1797.7,1.11217]
[1745762129071,10.4397,1797.8,1797.7,1.11217]
[1745762129369,7.2319,1797.8,1797.7,1.11217]
[1745762130673,3.722,1797.8,1797.7,4.31997]
[1745762131063,3.722,1797.8,1797.7,5.23837]
[1745762131973,0.78,1797.8,1797.7,5.23837]
[1745762132174,0.78,1797.8,1797.7,6.92737]
[1745762132975,1e-05,1797.8,1797.7,6.92737]
[1745762133176,1.6052,1798.3,1798.2,1.11186]
[1745762133566,2.77985,1798.1,1797.6,3.2078]
[1745762133764,2.77985,1798.1,1797.7,40.8]
[1745762133765,5.82100049,1798.0,1797.7,40.8]
[1745762133971,1.70280049,1797.9,1797.7,40.8]
[1745762134176,0.09760049,1797.8,1797.7,41.91217]
[1745762134475,6.43925,1797.9,1797.7,41.91213]
[1745762134674,1.6052,1797.8,1797.7,41.91213]
[1745762135266,5.3272,1797.8,1797.7,41.91213]
[1745762138574,5.3272,1797.8,1797.7,40.8]
[1745762138876,5.3272,1797.8,1797.7,41.91217]
[1745762139075,6.43931,1797.8,1797.7,40.8]
[1745762139975,6.53694598,1797.8,1797.7,40.8]
[1745762140677,5.42483598,1797.8,1797.7,40.8]
[1745762141676,6.53694598,1797.8,1797.7,40.8]
[1745762142171,5.42483598,1797.8,1797.7,40.8]
[1745762142377,6.53694598,1797.8,1797.7,40.8]
[1745762142969,6.53694598,1797.8,1797.6,1.11221]
[1745762143176,2.5103,1797.7,1797.6,1.11221]
[1745762143368,2.5103,1797.7,1797.6,41.91221]
[1745762144182,6.2323,1797.7,1797.6,41.91221]
[1745762145275,6.2323,1797.7,1797.6,40.8]
[1745762146172,7.34447,1797.7,1797.6,40.8]
[1745762146379,6.2323,1797.7,1797.6,40.8]
[1745762147479,6.2323,1797.7,1797.6,41.91223]
[1745762147676,6.2323,1797.7,1797.6,43.61903]
[1745762148478,4.5738,1797.7,1797.6,43.61903]
[1745762149781,3.722,1797.7,1797.6,43.61903]
[1745762150379,3.722,1797.7,1797.6,46.82683]
[1745762151582,4.83417,1797.7,1797.6,46.82683]
[1745762151784,6.45317,1797.7,1797.6,46.82683]
[1745762152484,5.341,1797.7,1797.6,46.82683]
[1745762152787,6.45317,1797.7,1797.6,46.82683]
[1745762153079,5.341,1797.7,1797.6,46.82683]
[1745762153280,5.341,1797.7,1797.6,43.61903]
[1745762153680,3.722,1797.7,1797.6,43.61903]
[1745762153880,3.722,1797.7,1797.6,46.82683]
[1745762154182,3.72629443,1797.7,1797.6,46.82683]
[1745762161880,3.72629443,1797.7,1797.6,45.12003]
[1745762162189,1.1123,1797.5,1797.4,3.2078]
[1745762162689,2.5019,1797.6,1797.5,1.1123]
[1745762162891,3.71177136,1797.6,1797.5,1.1123]
[1745762163189,6.32154136,1797.6,1797.5,1.1123]
[1745762163387,6.2239,1797.6,1797.5,1.1123]
[1745762165894,3.722,1797.6,1797.5,3.6409]
[1745762166891,5.3825,1797.6,1797.5,3.6409]
[1745762167288,5.3825,1797.6,1797.5,1.1123]
[1745762168393,5.3825,1797.6,1797.5,2.8187]
[1745762168885,6.2301,1797.6,1797.5,2.8187]
[1745762169091,3.722,1797.6,1797.5,2.8187]
[1745762169784,4.83426,1797.6,1797.4,45.12011]
[1745762169989,3.722,1797.6,1797.5,1.1123]
[1745762170188,3.722,1797.6,1797.5,2.773]
[1745762173797,1.72285952,1797.6,1797.5,7.773]
[1745762173999,9.52e-06,1797.6,1797.5,7.773]
[1745762174292,0.00429443,1797.7,1797.6,1.11223]
[1745762174293,4.43e-06,1797.7,1797.6,1.11223]
[1745762174490,4.43e-06,1797.7,1797.6,11.08253]
[1745762174795,4.43e-06,1797.7,1797.6,16.08253]
[1745762176892,4.43e-06,1797.7,1797.6,11.08253]
[1745762177292,4.43e-06,1797.7,1797.6,16.08253]
[1745762179189,4.43e-06,1797.7,1797.6,56.88253]
[1745762179390,7.0428,1799.0,1798.8,1.11147]
[1745762179591,0.98847644,1798.9,1798.8,1.11147]
[1745762180090,9.71047644,1798.9,1798.8,1.11147]
[1745762180392,9.71047644,1798.9,1798.6,1.6499]
[1745762180600,4.6129,1798.9,1798.5,4.1013]
[1745762180900,5.72436,1798.9,1798.7,1.11154]
[1745762182500,5.72435,1798.9,1798.7,1.11153]
[1745762182696,1.11152,1798.8,1798.6,1.11157]
[1745762182898,4.6129,1798.9,1798.7,1.11152]
[1745762183095,5.72435,1798.9,1798.7,1.11152]
[1745762183295,0.8975,1798.8,1798.7,1.11152]
[1745762183696,5.8975,1798.8,1798.7,1.11152]
[1745762184095,9.6195,1798.8,1798.7,1.11152]
[1745762185602,11.2948,1798.8,1798.7,1.11152]
[1745762185904,6.2948,1798.8,1798.7,1.11152]
[1745762190803,3.722,1798.8,1798.7,8.15332]
[1745762191204,3.722,1798.8,1798.7,48.95332]
[1745762191401,3.722,1798.8,1798.7,50.65242]
[1745762193608,2.36654,1798.8,1798.7,50.65242]
[1745762194112,1.7038,1799.0,1798.9,1.11143]
[1745762194412,1.7038,1799.0,1798.9,4.31923]
[1745762194909,1.7038,1799.0,1798.9,46.80053]
[1745762195303,5.4258,1799.0,1798.9,46.80053]
[1745762196510,5.4258,1799.0,1798.9,45.11923]
[1745762196817,5.4258,1799.0,1798.9,41.91143]
[1745762197509,5.4258,1799.0,1798.9,45.11923]
[1745762198799,6.53717,1799.0,1798.9,41.91143]
[1745762199002,5.4258,1799.0,1798.9,41.91143]
[1745762208318,3.722,1799.0,1798.9,41.91143]
[1745762208504,7.1221,1799.0,1798.9,41.91143]
[1745762212011,1.11149,1798.8,1798.7,3.2078]
[1745762212219,1.11157,1798.7,1798.5,8.14944]
[1745762212406,4.51972,1798.6,1798.5,7.0378]
[1745762212610,4.51972,1798.6,1798.5,3.83]
[1745762212810,4.51972,1798.6,1798.4,1.11169]
[1745762213010,1.6697,1798.5,1798.4,1.11169]
[1745762213411,1.6697,1798.5,1798.4,41.91169]
[1745762214217,6.50338,1798.5,1798.4,40.8]
[1745762214420,5.3917,1798.5,1798.4,41.91174]
[1745762217624,6.50338,1798.5,1798.4,40.8]
[1745762217823,5.3917,1798.5,1798.4,40.8]
[1745762218325,6.50338,1798.5,1798.4,40.8]
[1745762219930,6.60097317,1798.5,1798.4,40.8]
[1745762220126,1.1118,1798.4,1798.2,7.0378]
[1745762220321,1.6521,1798.3,1798.2,8.14966]
[1745762220528,2.5194,1798.3,1798.2,48.94966]
[1745762221225,6.2414,1798.3,1798.2,48.94966]
[1745762221632,3.722,1798.3,1798.2,48.94966]
[1745762221936,3.722,1798.3,1798.2,49.35956]
[1745762223338,3.722,1798.3,1798.2,48.94966]
[1745762223828,3.722,1798.3,1798.2,50.65836]
[1745762226429,2.50581,1798.3,1798.2,55.65836]
[1745762226633,0.52949,1798.3,1798.2,55.65836]
[1745762226839,0.9073,1798.9,1798.8,1.11149]
[1745762227135,4.6293,1798.9,1798.8,1.11149]
[1745762227335,7.32913,1798.9,1798.7,4.31931]
[1745762227636,7.32913,1798.9,1798.7,6.02401]
[1745762227833,1.5884,1798.8,1798.7,6.02401]
[1745762229236,6.183,1798.8,1798.7,6.02401]
[1745762230640,6.183,1798.8,1798.7,4.31931]
[1745762233231,6.183,1798.8,1798.7,5.89371]
[1745762236542,6.183,1798.8,1798.7,4.31931]
[1745762236735,7.29449,1798.8,1798.7,4.31931]
[1745762237042,1.11155,1798.7,1798.6,3.827]
[1745762237344,1.11162,1798.6,1798.4,4.93869]
[1745762237642,2.5089,1798.5,1798.4,4.93869]
[1745762237840,1.11176,1798.4,1798.2,44.0078]
[1745762238041,2.002,1798.3,1798.2,44.0078]
[1745762238436,2.09960489,1798.3,1798.2,40.8]
[1745762238729,3.73340489,1798.3,1798.2,40.8]
[1745762238933,3.7334102,1798.3,1798.2,40.8]
[1745762239139,7.4554102,1798.3,1798.2,40.8]
[1745762240247,7.3578,1798.3,1798.2,40.8]
[1745762240549,7.45540747,1798.3,1798.2,40.8]
[1745762240845,6.34360747,1798.3,1798.2,41.91186]
[1745762241046,7.45540747,1798.3,1798.2,40.8]
[1745762241552,6.34360747,1798.3,1798.2,41.91186]
[1745762241844,6.246,1798.3,1798.2,41.91186]
[1745762243447,3.722,1798.3,1798.2,43.60456]
[1745762243849,3.722,1798.3,1798.2,46.81236]
[1745762244040,3.722,1798.3,1798.2,52.22226]
[1745762244347,4.6015,1798.7,1798.6,1.11162]
[1745762244937,5.71305,1798.7,1798.6,1.6927]
[1745762245140,5.71305,1798.7,1798.5,7.0358]
[1745762245346,1.6422,1798.6,1798.5,9.84016]
[1745762246046,2.75382,1798.6,1798.5,8.7285]
[1745762246250,6.47582,1798.6,1798.5,7.0358]
[1745762248951,5.3642,1798.6,1798.5,8.14748]
[1745762249153,5.3642,1798.6,1798.5,9.82348]
[1745762250050,1.11174,1798.4,1798.3,3.2078]
[1745762250347,3.6399,1798.5,1798.3,1.11175]
[1745762250549,1.6437,1798.4,1798.3,2.78775]
[1745762250747,2.5122,1798.4,1798.3,2.78775]
[1745762250952,2.5122,1798.4,1798.3,5.99555]
[1745762251145,6.2342,1798.4,1798.3,5.99555]
[1745762255449,6.2342,1798.4,1798.3,2.78775]
[1745762260855,6.2342,1798.4,1798.3,1.11175]
[1745762261449,6.2342,1798.4,1798.3,2.76015]
[1745762262559,4.5905,1798.4,1798.3,5.96795]
[1745762263260,3.722,1798.4,1798.3,5.96795]
[1745762264559,3.722,1798.4,1798.3,10.96795]
[1745762265258,1.6029,1798.7,1798.6,1.11162]
[1745762265460,1.6029,1798.7,1798.5,4.93563]
[1745762265656,1.6029,1798.7,1798.6,1.11162]
[1745762266158,5.3249,1798.7,1798.6,1.11162]
[1745762268565,6.43645,1798.7,1798.5,4.93563]
[1745762268755,1.5843,1798.6,1798.5,4.93568]
[1745762269263,5.3063,1798.6,1798.5,4.93568]
[1745762269569,5.3063,1798.6,1798.5,1.11168]
[1745762273957,6.41794,1798.6,1798.4,1.11171]
[1745762274159,1.5874,1798.5,1798.4,1.11171]
[1745762275255,5.3094,1798.5,1798.4,1.11171]
[1745762276256,5.3094,1798.5,1798.4,2.72681]
[1745762276456,5.3094,1798.5,1798.4,1.11171]
[1745762281170,5.3094,1798.5,1798.4,2.81611]
[1745762281662,5.3094,1798.5,1798.4,1.11171]
[1745762282068,5.3094,1798.5,1798.3,4.31957]
[1745762282069,6.42108,1798.5,1798.3,4.31957]
[1745762282270,2.6503,1798.4,1798.3,4.3196]
[1745762283368,6.3723,1798.4,1798.3,4.3196]
[1745762283669,7.234,1798.4,1798.3,4.3196]
[1745762284770,6.2953,1798.4,1798.3,4.3196]
[1745762284975,2.47632,1798.4,1798.3,6.8055]
[1745762285169,6.7703,1798.7,1798.6,1.11162]
[1745762285570,8.3756,1798.7,1798.6,1.11162]
[1745762285971,8.3756,1798.7,1798.6,1.99002]
[1745762286276,12.0976,1798.7,1798.6,1.99002]
[1745762286864,12.0976,1798.7,1798.6,3.58822]
[1745762287773,9.634,1798.7,1798.6,3.58822]
[1745762289170,3.722,1798.7,1798.6,3.58822]
[1745762291172,3.722,1798.7,1798.6,4.10082]
[1745762291873,1.31077,1798.7,1798.6,9.10082]
[1745762292077,1.6101,1799.1,1799.0,1.11137]
[1745762292272,1.8502,1799.2,1799.1,1.11131]
[1745762293078,5.5722,1799.2,1799.1,1.11131]
[1745762295585,3.722,1799.2,1799.1,1.11131]
[1745762296283,5.347,1799.2,1799.1,1.11131]
[1745762298190,1.11131,1799.1,1798.9,4.93138]
[1745762298396,1.7726,1799.0,1798.9,1.11143]
[1745762299089,5.4946,1799.0,1798.9,4.31923]
[1745762299986,7.1024,1799.0,1798.9,4.31923]
[1745762300187,7.1024,1799.0,1798.9,6.02863]
[1745762300387,3.722,1799.0,1798.9,6.02863]
[1745762301594,4.5879,1799.0,1798.9,4.31923]
[1745762301784,6.3089,1799.0,1798.9,4.31923]
[1745762303895,3.722,1799.0,1798.9,5.95253]
[1745762305295,3.722,1799.0,1798.9,11.46423]
[1745762305984,3.722,1799.0,1798.9,52.26423]
[1745762306184,1.6088,1799.3,1799.2,1.11124]
[1745762306883,2.71998,1799.3,1799.2,40.8]
[1745762307294,9.74732565,1799.3,1799.2,40.8]
[1745762308797,6.53953172,1799.3,1799.2,40.8]
[1745762309396,6.53953166,1799.3,1799.2,41.91124]
[1745762309597,6.53953166,1799.3,1799.2,40.8]
[1745762310490,6.53952878,1799.3,1799.2,40.8]
[1745762312096,6.53953082,1799.3,1799.2,40.8]
[1745762313598,6.53953082,1799.3,1799.1,1.11129]
[1745762313800,1.7364,1799.2,1799.1,1.11129]
[1745762314000,1.7364,1799.2,1799.0,1.11136]
[1745762314298,0.8801,1799.1,1799.0,2.71566]
[1745762314498,0.8801,1799.1,1799.0,1.6043]
[1745762314800,2.6165,1799.1,1799.0,43.51567]
[1745762315192,6.3385,1799.1,1799.0,43.51567]
[1745762315588,3.722,1799.1,1799.0,43.51567]
[1745762315793,3.722,1799.1,1799.0,48.51567]
[1745762316199,3.3245,1799.4,1799.3,1.11118]
[1745762316498,2.4534,1799.4,1799.3,1.11118]
[1745762316898,2.4534,1799.4,1799.3,2.69648]
[1745762317098,6.1754,1799.4,1799.3,43.49648]
[1745762318697,7.28652,1799.4,1799.3,43.49648]
[1745762318897,7.28652,1799.4,1799.3,42.3853]
[1745762319097,6.1754,1799.4,1799.3,42.3853]
[1745762319296,7.28652,1799.4,1799.3,42.3853]
[1745762319495,7.28652,1799.4,1799.3,40.8]
[1745762319996,7.38406502,1799.4,1799.3,40.8]
[1745762320807,6.27294502,1799.4,1799.3,41.91118]
[1745762321003,7.38406502,1799.4,1799.3,40.8]
[1745762321203,7.38406502,1799.4,1799.3,41.91118]
[1745762321204,6.1754,1799.4,1799.3,41.91118]
[1745762321503,3.722,1799.4,1799.3,45.11898]
[1745762321703,3.722,1799.4,1799.3,46.73418]
[1745762324006,4.83312,1799.4,1799.3,46.73418]
[1745762324208,5.3157,1799.4,1799.3,46.73418]
[1745762324504,6.42682,1799.4,1799.3,45.623]
[1745762324700,6.42682,1799.4,1799.3,40.8]
[1745762325411,6.52436409,1799.4,1799.3,40.8]
[1745762325907,6.52436446,1799.4,1799.3,40.8]
[1745762329006,5.41324466,1799.4,1799.3,41.91118]
[1745762329202,6.42682,1799.4,1799.3,40.8]
[1745762329406,6.42682,1799.4,1799.3,42.4948]
[1745762330210,5.3157,1799.4,1799.3,43.60598]
[1745762330909,6.42682,1799.4,1799.3,43.60598]
[1745762331710,5.3157,1799.4,1799.3,40.8]
[1745762331912,6.42682,1799.4,1799.3,41.91118]
[1745762332213,6.42682,1799.4,1799.3,42.3822]
[1745762332912,6.42682,1799.4,1799.3,40.8]
[1745762334407,6.42682,1799.4,1798.9,3.2078]
[1745762334408,1.11137,1799.0,1798.9,3.2078]
[1745762334711,1.11143,1798.9,1798.8,6.3156]
[1745762334899,4.50313,1798.9,1798.8,47.1156]
[1745762335103,8.22513,1798.9,1798.8,47.1156]
[1745762335304,7.1137,1798.9,1798.8,48.22709]
[1745762335614,3.722,1798.9,1798.8,48.22709]
[1745762336317,4.83343,1798.9,1798.8,47.1156]
[1745762337821,3.722,1798.9,1798.8,48.22709]
[1745762338212,4.83343,1798.9,1798.8,47.1156]
[1745762338409,3.722,1798.9,1798.8,48.22709]
[1745762342321,3.722,1799.0,1798.9,1.11143]
[1745762342518,1.11143,1798.9,1798.8,46.60326]
[1745762342815,6.48131,1799.0,1798.8,46.60326]
[1745762343120,6.48131,1799.0,1798.9,1.11143]
[1745762343419,6.48131,1799.0,1798.8,46.60327]
[1745762344224,6.48127,1799.0,1798.9,1.11143]
[1745762345119,1.11143,1798.9,1798.8,45.4918]
[1745762345322,6.48131,1799.0,1798.8,45.4918]
[1745762345522,1.7403,1798.9,1798.8,46.60326]
[1745762346226,5.4623,1798.9,1798.8,46.60326]
[1745762348518,3.722,1798.9,1798.8,46.60326]
[1745762348718,4.83343,1798.9,1798.8,45.4918]
[1745762348928,3.722,1798.9,1798.8,45.72649]
[1745762349424,6.3122,1798.9,1798.8,45.72649]
[1745762352840,7.42363,1798.9,1798.8,45.72649]
[1745762353128,6.3122,1798.9,1798.8,45.72649]
[1745762353431,4.5841,1798.9,1798.8,45.72649]
[1745762353637,3.722,1798.9,1798.8,45.72649]
[1745762353933,3.722,1798.9,1798.8,48.93429]
[1745762354230,0.8461,1799.0,1798.9,1.11143]
[1745762355223,1.663,1799.1,1799.0,1.11137]
[1745762355523,2.596,1799.1,1799.0,1.11137]
[1745762355930,2.596,1799.1,1799.0,1.96767]
[1745762356127,6.318,1799.1,1799.0,1.96767]
[1745762357730,7.42931,1799.1,1799.0,0.8563]
[1745762358332,7.42931,1799.1,1798.9,2.7001]
[1745762358625,1.7307,1799.0,1798.9,2.7001]
[1745762359233,5.4527,1799.0,1798.9,2.7001]
[1745762359422,6.56407,1799.0,1798.9,2.7001]
[1745762359618,6.3613,1799.0,1798.9,1.1114]
[1745762359828,7.47267,1799.0,1798.9,1.1114]
[1745762360238,7.47267,1799.0,1798.8,50.62405]
[1745762360545,1.7307,1798.9,1798.8,48.93425]
[1745762361127,5.4527,1798.9,1798.8,48.93425]
[1745762361733,5.4527,1798.9,1798.8,50.66315]
[1745762363032,3.722,1798.9,1798.8,50.66315]
[1745762363933,6.48263,1798.9,1798.8,49.5517]
[1745762364135,6.48263,1798.9,1798.8,47.8228]
[1745762364333,6.48263,1798.9,1798.8,44.0078]
[1745762365536,13.24735096,1798.9,1798.4,5.24202]
[1745762365839,1.11168,1798.5,1798.4,5.8608]
[1745762366026,1.11168,1798.5,1798.4,46.6608]
[1745762366225,4.83368,1798.5,1798.4,40.8]
[1745762367237,5.75528,1798.5,1798.4,40.8]
[1745762367632,5.85287327,1798.5,1798.4,40.8]
[1745762367829,3.722,1798.5,1798.4,41.91174]
[1745762368034,3.722,1798.5,1798.4,45.97764]
[1745762368240,2.97088,1798.7,1798.5,1.11165]
[1745762368729,2.97088,1798.7,1798.5,2.71315]
[1745762368940,1.7153,1798.6,1798.5,2.71315]
[1745762369126,5.4373,1798.6,1798.5,2.71315]
[1745762370438,3.722,1798.6,1798.5,2.71315]
[1745762373345,3.722,1798.7,1798.6,1.11162]
[1745762373542,3.722,1798.7,1798.6,6.44792]
[1745762375936,3.722,1798.7,1798.6,10.25992]
[1745762376145,2.00089,1799.2,1798.7,2.77884]
[1745762376450,5.7895,1799.3,1799.2,1.11124]
[1745762376644,5.8870547,1799.3,1799.2,1.11124]
[1745762377143,5.26706,1799.5,1799.3,1.11116]
[1745762377331,0.09754251,1799.4,1799.3,1.11116]
[1745762377735,6.7377,1799.5,1799.2,3.808]
[1745762377736,6.7377,1799.5,1799.4,1.11112]
[1745762377931,3.62743778,1799.5,1799.4,41.91112]
[1745762378136,7.34943424,1799.5,1799.4,41.91112]
[1745762378338,6.3037,1799.5,1799.4,42.85932]
[1745762379041,3.722,1799.5,1799.4,42.85932]
[1745762379245,3.722,1799.5,1799.4,46.06712]
[1745762380238,1.5918,1799.8,1799.4,44.956]
[1745762380444,2.70272,1799.8,1799.5,1.11102]
[1745762381043,1.5918,1799.7,1799.5,2.72152]
[1745762381441,1.5918,1799.7,1799.6,1.111]
[1745762381641,2.4874,1799.7,1799.6,1.111]
[1745762382141,6.2094,1799.7,1799.6,1.111]
[1745762382642,9.4172,1799.7,1799.4,40.8]
[1745762382849,3.63073,1799.6,1799.4,40.8]
[1745762383049,1.645,1799.5,1799.4,41.91112]
[1745762384246,5.367,1799.5,1799.4,41.91112]
[1745762385450,3.722,1799.5,1799.4,45.99652]
[1745762386354,5.4442,1799.5,1799.4,45.99652]
[1745762387652,5.4442,1799.5,1799.4,47.61832]
[1745762388049,3.722,1799.5,1799.4,47.61832]
[1745762388251,3.722,1799.5,1799.4,44.0078]
[1745762388551,4.83306,1799.5,1799.4,40.8]
[1745762388954,5.75526,1799.5,1799.4,40.8]
[1745762390755,5.75891066,1799.5,1799.4,40.8]
[1745762391463,5.85644581,1799.5,1799.4,40.8]
[1745762393869,12.95318581,1799.5,1799.0,9.5378]
[1745762394073,2.60113515,1799.4,1799.0,6.33]
[1745762394376,3.61475,1799.4,1799.1,42.4287]
[1745762394572,1.6067,1799.3,1799.2,2.73989]
[1745762395177,5.3287,1799.3,1799.2,2.73989]
[1745762395376,6.43988,1799.3,1799.2,1.11119]
[1745762395576,5.3287,1799.3,1799.2,1.11119]
[1745762398482,5.4628,1799.3,1799.2,4.31899]
[1745762398781,6.57398,1799.3,1799.2,3.2078]
[1745762399172,6.67153204,1799.3,1799.2,3.2078]
[1745762399469,10.56035204,1799.3,1798.9,3.2078]
[1745762399675,4.31919,1799.0,1798.8,1.11146]
[1745762399884,2.689,1798.9,1798.8,1.11146]
[1745762400082,7.2773,1798.9,1798.8,41.91146]
[1745762400482,8.38873,1798.9,1798.8,40.8]
[1745762401075,7.2773,1798.9,1798.8,40.8]
[1745762401278,7.2773,1798.9,1798.8,41.91149]
[1745762401479,7.2773,1798.9,1798.8,40.8]
[1745762401775,7.2773,1798.9,1798.8,41.91149]
[1745762402381,7.2773,1798.9,1798.8,40.8]
[1745762402987,7.2773,1798.9,1798.8,41.91149]
[1745762407189,8.38873,1798.9,1798.8,40.8]
[1745762407389,7.2773,1798.9,1798.8,40.8]
[1745762407890,7.2773,1798.9,1798.8,41.91149]
[1745762408386,8.38873,1798.9,1798.8,40.8]
[1745762408690,1.11154,1798.8,1798.3,3.804]
[1745762408883,3.2078,1798.7,1798.5,1.11163]
[1745762409077,2.5415,1798.6,1798.5,1.11163]
[1745762409285,3.4448,1798.6,1798.5,1.11163]
[1745762409584,4.55642,1798.6,1798.5,40.8]
[1745762409889,4.65400854,1798.6,1798.5,40.8]
[1745762410085,8.37601008,1798.6,1798.5,40.8]
[1745762410789,1.1117,1798.5,1798.3,1.11176]
[1745762410992,1.5931,1798.4,1798.3,1.11176]
[1745762411690,1.5931,1798.4,1798.3,41.91176]
[1745762412090,5.3151,1798.4,1798.3,43.57926]